[Event "Late-Titled-Tuesday-Blitz-April-16-2024"]
[Site "Chess.com"]
[Date "2024.04.16"]
[Round "7"]
[White "ContrVersia"]
[Black "ReadySkate"]
[Result "0-1"]
[WhiteElo "2839"]
[BlackElo "2633"]
[TimeControl "180+1"]
[EndTime "15:12:35 PDT"]
[Termination "ReadySkate won by resignation"]

1. d4 {[%clk 0:03:00.9]} 1... Nf6 {[%clk 0:02:59.8]} 2. c4 {[%clk 0:03:00.6]}
2... g6 {[%clk 0:03:00.2]} 3. Nc3 {[%clk 0:03:00.7]} 3... d5 {[%clk 0:03:00.8]}
4. Nf3 {[%clk 0:03:00.7]} 4... Bg7 {[%clk 0:03:01]} 5. Bg5 {[%clk 0:03:00.7]}
5... Ne4 {[%clk 0:03:01.1]} 6. Bf4 {[%clk 0:02:59.9]} 6... Nxc3 {[%clk
0:03:00.5]} 7. bxc3 {[%clk 0:02:59.6]} 7... dxc4 {[%clk 0:03:01.2]} 8. e3 {[%clk
0:02:59.2]} 8... O-O {[%clk 0:03:01.8]} 9. Bxc4 {[%clk 0:02:58.7]} 9... c5
{[%clk 0:03:02.5]} 10. h3 {[%clk 0:02:55.5]} 10... Nc6 {[%clk 0:03:02.8]} 11.
O-O {[%clk 0:02:54.6]} 11... Bf5 {[%clk 0:03:03.2]} 12. Be2 {[%clk 0:02:46.1]}
12... Rc8 {[%clk 0:03:01.8]} 13. Rc1 {[%clk 0:02:40.9]} 13... cxd4 {[%clk
0:02:45.1]} 14. cxd4 {[%clk 0:02:40.1]} 14... Be4 {[%clk 0:02:39.8]} 15. Qb3
{[%clk 0:02:33.8]} 15... Na5 {[%clk 0:02:34.1]} 16. Qa3 {[%clk 0:02:28.7]} 16...
Rxc1 {[%clk 0:02:25.3]} 17. Rxc1 {[%clk 0:02:28]} 17... b6 {[%clk 0:02:23.8]}
18. Ne5 {[%clk 0:02:15.9]} 18... e6 {[%clk 0:02:10.6]} 19. Bb5 {[%clk
0:01:48.7]} 19... Bxg2 {[%clk 0:01:53.2]} 20. Nd7 {[%clk 0:01:48.2]} 20... Bxh3
{[%clk 0:01:45.7]} 21. Nxf8 {[%clk 0:01:44.6]} 21... Bxf8 {[%clk 0:01:41.9]} 22.
Qd3 {[%clk 0:01:38]} 22... Qh4 {[%clk 0:01:28.9]} 23. Bg3 {[%clk 0:01:35.1]}
23... Qh5 {[%clk 0:01:28.4]} 24. Ba4 {[%clk 0:00:44.3]} 24... Qf3 {[%clk
0:01:21.6]} 0-1

[Event "Late-Titled-Tuesday-Blitz-April-16-2024"]
[Site "Chess.com"]
[Date "2024.04.16"]
[Round "7"]
[White "chess_sharparchitect"]
[Black "PNEPaul"]
[Result "1-0"]
[WhiteElo "2241"]
[BlackElo "1866"]
[TimeControl "180+1"]
[EndTime "15:12:36 PDT"]
[Termination "chess_sharparchitect won by resignation"]

1. c4 {[%clk 0:03:00.9]} 1... a6 {[%clk 0:02:38.7]} 2. Nc3 {[%clk 0:02:58.7]}
2... d6 {[%clk 0:02:38.8]} 3. e4 {[%clk 0:02:58.3]} 3... g6 {[%clk 0:02:39.1]}
4. d4 {[%clk 0:02:58.1]} 4... h6 {[%clk 0:02:39.3]} 5. Nf3 {[%clk 0:02:56.3]}
5... Bg7 {[%clk 0:02:39.3]} 6. Bd3 {[%clk 0:02:51.7]} 6... Nd7 {[%clk
0:02:39.2]} 7. Be3 {[%clk 0:02:50.4]} 7... e5 {[%clk 0:02:38.9]} 8. Qd2 {[%clk
0:02:50]} 8... Ne7 {[%clk 0:02:38.4]} 9. Nd5 {[%clk 0:02:38.2]} 9... c6 {[%clk
0:02:37]} 10. Nxe7 {[%clk 0:02:27.9]} 10... Qxe7 {[%clk 0:02:35.3]} 11. O-O
{[%clk 0:02:28]} 11... g5 {[%clk 0:02:28.5]} 12. dxe5 {[%clk 0:02:19.6]} 12...
Nxe5 {[%clk 0:02:27]} 13. Nxe5 {[%clk 0:02:17.4]} 13... Qxe5 {[%clk 0:02:20.1]}
14. b4 {[%clk 0:02:05.5]} 14... O-O {[%clk 0:02:15.4]} 15. Rad1 {[%clk 0:02:02]}
15... Qc3 {[%clk 0:02:06]} 16. Rc1 {[%clk 0:01:43.9]} 16... Qxd2 {[%clk
0:02:05]} 17. Bxd2 {[%clk 0:01:44.8]} 17... Be6 {[%clk 0:02:02.8]} 18. a4 {[%clk
0:01:39.6]} 18... d5 {[%clk 0:01:52.3]} 19. cxd5 {[%clk 0:01:35]} 19... cxd5
{[%clk 0:01:52.1]} 20. Rc7 {[%clk 0:01:30.5]} 20... Rfd8 {[%clk 0:01:30.3]} 21.
exd5 {[%clk 0:01:19.2]} 21... Bxd5 {[%clk 0:01:25.7]} 22. Be3 {[%clk 0:01:13.5]}
22... Bxg2 {[%clk 0:01:04.1]} 23. Kxg2 {[%clk 0:01:10.5]} 23... Rxd3 {[%clk
0:01:03.2]} 24. Rxb7 {[%clk 0:01:10]} 24... Bd4 {[%clk 0:00:59.4]} 25. Rd7
{[%clk 0:01:01.7]} 25... Rxe3 {[%clk 0:00:54.1]} 26. fxe3 {[%clk 0:01:00.3]}
26... Bxe3 {[%clk 0:00:54]} 27. Rfxf7 {[%clk 0:01:00.3]} 1-0

[Event "Late-Titled-Tuesday-Blitz-April-16-2024"]
[Site "Chess.com"]
[Date "2024.04.16"]
[Round "7"]
[White "Doublekk14"]
[Black "rhwr"]
[Result "0-1"]
[WhiteElo "2364"]
[BlackElo "2249"]
[TimeControl "180+1"]
[EndTime "15:12:57 PDT"]
[Termination "rhwr won on time"]

1. c4 {[%clk 0:02:47.4]} 1... c5 {[%clk 0:03:00.9]} 2. Nc3 {[%clk 0:02:44.6]}
2... Nc6 {[%clk 0:03:01.4]} 3. Nf3 {[%clk 0:02:44.6]} 3... g6 {[%clk 0:03:01.9]}
4. e3 {[%clk 0:02:44.3]} 4... Bg7 {[%clk 0:03:02]} 5. d4 {[%clk 0:02:45.2]} 5...
cxd4 {[%clk 0:03:00.8]} 6. exd4 {[%clk 0:02:44.6]} 6... d6 {[%clk 0:03:01.2]} 7.
Be2 {[%clk 0:02:36.8]} 7... Bg4 {[%clk 0:03:00.1]} 8. Be3 {[%clk 0:02:36]} 8...
Nf6 {[%clk 0:02:58.7]} 9. h3 {[%clk 0:02:34.5]} 9... Bd7 {[%clk 0:02:57.4]} 10.
O-O {[%clk 0:02:33.9]} 10... O-O {[%clk 0:02:56.7]} 11. Qd2 {[%clk 0:02:23]}
11... Re8 {[%clk 0:02:55.8]} 12. Rfd1 {[%clk 0:02:19.5]} 12... e6 {[%clk
0:02:45.2]} 13. b3 {[%clk 0:02:09.6]} 13... d5 {[%clk 0:02:44.9]} 14. Rac1
{[%clk 0:02:08.4]} 14... Rc8 {[%clk 0:02:39.5]} 15. Bh6 {[%clk 0:02:04.5]} 15...
Bh8 {[%clk 0:02:38.6]} 16. Bg5 {[%clk 0:02:01]} 16... Qa5 {[%clk 0:02:34.3]} 17.
Bxf6 {[%clk 0:01:46.2]} 17... Bxf6 {[%clk 0:02:32.8]} 18. Qf4 {[%clk 0:01:33.3]}
18... Bg7 {[%clk 0:02:28]} 19. Nb5 {[%clk 0:01:15.8]} 19... Rf8 {[%clk
0:02:17.8]} 20. Nd6 {[%clk 0:01:04.1]} 20... Rb8 {[%clk 0:02:17.1]} 21. cxd5
{[%clk 0:00:54.7]} 21... exd5 {[%clk 0:02:13.5]} 22. a4 {[%clk 0:00:45.5]} 22...
Qb4 {[%clk 0:01:59.3]} 23. Rd3 {[%clk 0:00:24.8]} 23... Rbd8 {[%clk 0:01:47.3]}
24. Rc5 {[%clk 0:00:22.9]} 24... Be6 {[%clk 0:01:43.1]} 25. Ng5 {[%clk
0:00:16.1]} 25... Nxd4 {[%clk 0:01:32.8]} 26. Qc1 {[%clk 0:00:04.9]} 26... Nxe2+
{[%clk 0:01:31.4]} 0-1

[Event "Late-Titled-Tuesday-Blitz-April-16-2024"]
[Site "Chess.com"]
[Date "2024.04.16"]
[Round "7"]
[White "CaspiIsrael"]
[Black "WindWhistler11"]
[Result "1-0"]
[WhiteElo "2717"]
[BlackElo "2500"]
[TimeControl "180+1"]
[EndTime "15:13:00 PDT"]
[Termination "CaspiIsrael won on time"]

1. e4 {[%clk 0:03:00.9]} 1... e6 {[%clk 0:02:59.4]} 2. d4 {[%clk 0:03:01.2]}
2... d5 {[%clk 0:02:58]} 3. e5 {[%clk 0:03:01.7]} 3... c5 {[%clk 0:02:57.8]} 4.
c3 {[%clk 0:03:02.3]} 4... Nc6 {[%clk 0:02:58.5]} 5. Nf3 {[%clk 0:03:02.4]} 5...
Bd7 {[%clk 0:02:58.6]} 6. Bd3 {[%clk 0:03:02.1]} 6... cxd4 {[%clk 0:02:55.9]} 7.
cxd4 {[%clk 0:03:02.1]} 7... Nb4 {[%clk 0:02:56.6]} 8. Be2 {[%clk 0:02:59.6]}
8... Rc8 {[%clk 0:02:55.5]} 9. Nc3 {[%clk 0:02:59.7]} 9... Ne7 {[%clk
0:02:53.8]} 10. a3 {[%clk 0:02:58.3]} 10... Nbc6 {[%clk 0:02:53.8]} 11. O-O
{[%clk 0:02:56.9]} 11... Nf5 {[%clk 0:02:51.6]} 12. g4 {[%clk 0:02:50.3]} 12...
Nh4 {[%clk 0:02:49.7]} 13. Ne1 {[%clk 0:02:50.6]} 13... f5 {[%clk 0:02:45.1]}
14. exf6 {[%clk 0:02:48.7]} 14... Qxf6 {[%clk 0:02:40.7]} 15. Be3 {[%clk
0:02:47.3]} 15... Bd6 {[%clk 0:02:34.7]} 16. f4 {[%clk 0:02:47.3]} 16... O-O
{[%clk 0:02:19.7]} 17. Rc1 {[%clk 0:02:47.2]} 17... a6 {[%clk 0:02:11.3]} 18. h3
{[%clk 0:02:44.7]} 18... Ne7 {[%clk 0:02:00.9]} 19. Nd3 {[%clk 0:02:42.6]} 19...
Neg6 {[%clk 0:01:43.6]} 20. Ne5 {[%clk 0:02:42.5]} 20... Bxe5 {[%clk 0:01:37.5]}
21. dxe5 {[%clk 0:02:40.9]} 21... Qe7 {[%clk 0:01:12.1]} 22. Qd4 {[%clk
0:02:39.9]} 22... h5 {[%clk 0:00:57.3]} 23. Rf2 {[%clk 0:02:37.8]} 23... Bb5
{[%clk 0:00:54]} 24. Nxb5 {[%clk 0:02:25.3]} 24... Rxc1+ {[%clk 0:00:52.4]} 25.
Bxc1 {[%clk 0:02:25.1]} 25... axb5 {[%clk 0:00:51.4]} 26. Bxb5 {[%clk
0:02:24.9]} 26... hxg4 {[%clk 0:00:50]} 27. hxg4 {[%clk 0:02:24.4]} 27... Qc7
{[%clk 0:00:39.7]} 28. Be3 {[%clk 0:02:21.7]} 28... Qa5 {[%clk 0:00:36.2]} 29.
Qb4 {[%clk 0:02:17.8]} 29... Qc7 {[%clk 0:00:28.3]} 30. Bd3 {[%clk 0:02:17.5]}
30... d4 {[%clk 0:00:11.9]} 31. Qxd4 {[%clk 0:02:13.7]} 31... Rd8 {[%clk
0:00:12.1]} 32. Qe4 {[%clk 0:02:13.8]} 32... Rxd3 {[%clk 0:00:07.2]} 33. Qxd3
{[%clk 0:02:13.1]} 33... Qc6 {[%clk 0:00:07.9]} 34. Kh2 {[%clk 0:02:04.1]} 34...
Nf3+ {[%clk 0:00:06.1]} 35. Kg3 {[%clk 0:02:03.4]} 35... Ngh4 {[%clk 0:00:05.9]}
36. Rc2 {[%clk 0:01:58.9]} 36... Qe8 {[%clk 0:00:02.8]} 37. Rc7 {[%clk
0:01:52.3]} 1-0

[Event "Late-Titled-Tuesday-Blitz-April-16-2024"]
[Site "Chess.com"]
[Date "2024.04.16"]
[Round "7"]
[White "cristiano78"]
[Black "LUISMIGUELOV"]
[Result "0-1"]
[WhiteElo "2269"]
[BlackElo "2190"]
[TimeControl "180+1"]
[EndTime "15:13:06 PDT"]
[Termination "LUISMIGUELOV won by resignation"]

1. d4 {[%clk 0:02:43.1]} 1... d5 {[%clk 0:02:59.4]} 2. c4 {[%clk 0:02:42.4]}
2... c6 {[%clk 0:02:59.5]} 3. Nf3 {[%clk 0:02:42.5]} 3... Nf6 {[%clk 0:02:59.5]}
4. Nc3 {[%clk 0:02:43]} 4... dxc4 {[%clk 0:02:59.6]} 5. a4 {[%clk 0:02:43.1]}
5... Bf5 {[%clk 0:02:59.8]} 6. e3 {[%clk 0:02:42.9]} 6... e6 {[%clk 0:03:00]} 7.
Bxc4 {[%clk 0:02:43.5]} 7... Bb4 {[%clk 0:02:59.4]} 8. O-O {[%clk 0:02:43.8]}
8... O-O {[%clk 0:02:59.3]} 9. Qe2 {[%clk 0:02:43.8]} 9... a5 {[%clk 0:02:58.9]}
10. e4 {[%clk 0:02:42.4]} 10... Bg6 {[%clk 0:02:56.3]} 11. e5 {[%clk 0:02:42.1]}
11... Nd5 {[%clk 0:02:55.4]} 12. Nxd5 {[%clk 0:02:42.3]} 12... exd5 {[%clk
0:02:51.9]} 13. Bd3 {[%clk 0:02:42.4]} 13... Bxd3 {[%clk 0:02:48.9]} 14. Qxd3
{[%clk 0:02:42.5]} 14... Nd7 {[%clk 0:02:46.2]} 15. Ng5 {[%clk 0:02:41.8]} 15...
g6 {[%clk 0:02:06.6]} 16. Qh3 {[%clk 0:02:40.1]} 16... h5 {[%clk 0:02:05.5]} 17.
e6 {[%clk 0:02:00.1]} 17... fxe6 {[%clk 0:01:54.1]} 18. Nxe6 {[%clk 0:01:48.7]}
18... Qf6 {[%clk 0:01:46.6]} 19. Nxf8 {[%clk 0:01:48.7]} 19... Nxf8 {[%clk
0:01:46]} 20. Be3 {[%clk 0:01:47.6]} 20... Re8 {[%clk 0:01:43.2]} 21. Rad1
{[%clk 0:01:36.2]} 21... Re4 {[%clk 0:01:42.5]} 22. Qc8 {[%clk 0:01:29.8]} 22...
Qf7 {[%clk 0:01:33.5]} 23. h4 {[%clk 0:01:13.5]} 23... Kh7 {[%clk 0:01:25.6]}
24. g3 {[%clk 0:01:11.6]} 24... Ne6 {[%clk 0:01:18.4]} 25. Rd3 {[%clk 0:00:56]}
25... Ng7 {[%clk 0:01:17.7]} 26. Qh3 {[%clk 0:00:53.2]} 26... Nf5 {[%clk
0:01:17.3]} 27. Bg5 {[%clk 0:00:52.7]} 27... Nxd4 {[%clk 0:01:09.6]} 28. Re3
{[%clk 0:00:49.9]} 28... Rg4 {[%clk 0:00:58.8]} 29. Re7 {[%clk 0:00:44.3]} 29...
Bxe7 {[%clk 0:00:57.8]} 30. Bxe7 {[%clk 0:00:39.9]} 30... Qxe7 {[%clk
0:00:57.8]} 0-1

[Event "Late-Titled-Tuesday-Blitz-April-16-2024"]
[Site "Chess.com"]
[Date "2024.04.16"]
[Round "7"]
[White "DeArron_Fox"]
[Black "HamedWafa4"]
[Result "0-1"]
[WhiteElo "2574"]
[BlackElo "2763"]
[TimeControl "180+1"]
[EndTime "15:13:12 PDT"]
[Termination "HamedWafa4 won by resignation"]

1. d4 {[%clk 0:03:00.9]} 1... Nf6 {[%clk 0:03:00]} 2. c4 {[%clk 0:02:59.1]} 2...
e6 {[%clk 0:02:59.8]} 3. Nf3 {[%clk 0:02:57.7]} 3... Bb4+ {[%clk 0:02:57.5]} 4.
Bd2 {[%clk 0:02:57.6]} 4... Be7 {[%clk 0:02:57]} 5. g3 {[%clk 0:02:57.1]} 5...
O-O {[%clk 0:02:56.7]} 6. Bg2 {[%clk 0:02:54.9]} 6... d5 {[%clk 0:02:56.1]} 7.
O-O {[%clk 0:02:47.4]} 7... a5 {[%clk 0:02:52.2]} 8. Bf4 {[%clk 0:02:44.1]} 8...
dxc4 {[%clk 0:02:44.3]} 9. Nbd2 {[%clk 0:02:07.3]} 9... b5 {[%clk 0:02:35.4]}
10. a4 {[%clk 0:02:06.4]} 10... c6 {[%clk 0:02:33]} 11. Ne5 {[%clk 0:02:06.7]}
11... Nd5 {[%clk 0:02:24.5]} 12. b3 {[%clk 0:01:46]} 12... c3 {[%clk 0:02:19.5]}
13. Ne4 {[%clk 0:01:38.7]} 13... b4 {[%clk 0:02:18.3]} 14. Qc2 {[%clk
0:01:25.2]} 14... Bb7 {[%clk 0:02:13.2]} 15. Rad1 {[%clk 0:01:22.4]} 15... Nd7
{[%clk 0:02:08.3]} 16. Nc4 {[%clk 0:01:08.2]} 16... Nxf4 {[%clk 0:02:05.8]} 17.
gxf4 {[%clk 0:01:07.3]} 17... Qc7 {[%clk 0:02:03.8]} 18. e3 {[%clk 0:01:05.8]}
18... c5 {[%clk 0:02:02.4]} 19. dxc5 {[%clk 0:00:32.7]} 19... Nxc5 {[%clk
0:01:58.5]} 20. Ne5 {[%clk 0:00:26.1]} 20... Nxe4 {[%clk 0:01:51.4]} 21. Rd7
{[%clk 0:00:17.5]} 21... Qc8 {[%clk 0:01:35.6]} 22. Rxe7 {[%clk 0:00:09.9]}
22... Nd6 {[%clk 0:01:33.8]} 23. Bxb7 {[%clk 0:00:05.3]} 23... Nxb7 {[%clk
0:01:33.9]} 24. Rd1 {[%clk 0:00:05.8]} 24... Nd8 {[%clk 0:01:22.3]} 25. Rdd7
{[%clk 0:00:05.2]} 25... Nc6 {[%clk 0:01:21]} 26. Nxc6 {[%clk 0:00:03.6]} 26...
Qxc6 {[%clk 0:01:21.1]} 27. h4 {[%clk 0:00:02.8]} 27... Rad8 {[%clk 0:01:20.2]}
28. Rc7 {[%clk 0:00:02.4]} 28... Qf3 {[%clk 0:01:19.7]} 29. Kh2 {[%clk
0:00:02.9]} 29... Rd2 {[%clk 0:01:18.9]} 0-1

[Event "Late-Titled-Tuesday-Blitz-April-16-2024"]
[Site "Chess.com"]
[Date "2024.04.16"]
[Round "7"]
[White "Savagelittlemole"]
[Black "a-z30"]
[Result "1-0"]
[WhiteElo "2497"]
[BlackElo "2379"]
[TimeControl "180+1"]
[EndTime "15:13:22 PDT"]
[Termination "Savagelittlemole won on time"]

1. d4 {[%clk 0:03:00.9]} 1... Nf6 {[%clk 0:02:58.9]} 2. Bg5 {[%clk 0:03:00.6]}
2... e6 {[%clk 0:02:54.5]} 3. e4 {[%clk 0:03:00.2]} 3... h6 {[%clk 0:02:52.1]}
4. Bxf6 {[%clk 0:03:00.1]} 4... Qxf6 {[%clk 0:02:53]} 5. Nc3 {[%clk 0:02:59.9]}
5... Bb4 {[%clk 0:02:52.2]} 6. Nf3 {[%clk 0:02:55.6]} 6... d6 {[%clk 0:02:21.3]}
7. Qd2 {[%clk 0:02:54.8]} 7... e5 {[%clk 0:02:06.2]} 8. a3 {[%clk 0:02:48.1]}
8... Bxc3 {[%clk 0:02:04.9]} 9. Qxc3 {[%clk 0:02:47.9]} 9... Nc6 {[%clk
0:02:02.6]} 10. Bb5 {[%clk 0:02:46.8]} 10... O-O {[%clk 0:01:35.7]} 11. Bxc6
{[%clk 0:02:45.1]} 11... bxc6 {[%clk 0:01:35.3]} 12. dxe5 {[%clk 0:02:45.3]}
12... Qg6 {[%clk 0:01:35.3]} 13. O-O {[%clk 0:02:38.1]} 13... Qxe4 {[%clk
0:00:58.3]} 14. Rfe1 {[%clk 0:02:37.8]} 14... Qd5 {[%clk 0:00:46.1]} 15. Rad1
{[%clk 0:02:36.8]} 15... Qc5 {[%clk 0:00:46.3]} 16. Qxc5 {[%clk 0:02:36.5]}
16... dxc5 {[%clk 0:00:47.2]} 17. h3 {[%clk 0:02:29.2]} 17... Be6 {[%clk
0:00:46.1]} 18. Re3 {[%clk 0:02:27.4]} 18... a5 {[%clk 0:00:44.8]} 19. Rc3
{[%clk 0:02:27.4]} 19... Rab8 {[%clk 0:00:44.4]} 20. Rxc5 {[%clk 0:02:10.7]}
20... Rxb2 {[%clk 0:00:40.2]} 21. Rxc6 {[%clk 0:02:10.7]} 21... Ra2 {[%clk
0:00:38.5]} 22. Rd3 {[%clk 0:02:00]} 22... Rb8 {[%clk 0:00:22.6]} 23. Rxc7
{[%clk 0:01:56.4]} 23... Rbb2 {[%clk 0:00:18.6]} 24. Nd4 {[%clk 0:01:53.1]}
24... Rb1+ {[%clk 0:00:11.5]} 25. Kh2 {[%clk 0:01:52.6]} 25... Rf1 {[%clk
0:00:09.9]} 26. Nxe6 {[%clk 0:01:50.6]} 26... fxe6 {[%clk 0:00:09.9]} 27. Rdd7
{[%clk 0:01:46.9]} 27... Rxf2 {[%clk 0:00:09.3]} 28. Rxg7+ {[%clk 0:01:45.6]}
28... Kf8 {[%clk 0:00:09.6]} 29. Rgd7 {[%clk 0:01:32.5]} 29... Kg8 {[%clk
0:00:09.6]} 30. Rd6 {[%clk 0:01:21.1]} 30... Raxc2 {[%clk 0:00:03.8]} 31. Rd8+
{[%clk 0:01:20.6]} 31... Rf8 {[%clk 0:00:02.3]} 32. Rxf8+ {[%clk 0:01:21.4]}
32... Kxf8 {[%clk 0:00:02.4]} 33. Rxc2 {[%clk 0:01:22.3]} 1-0

[Event "Late-Titled-Tuesday-Blitz-April-16-2024"]
[Site "Chess.com"]
[Date "2024.04.16"]
[Round "7"]
[White "esrosenberg"]
[Black "JaackCamel"]
[Result "0-1"]
[WhiteElo "2325"]
[BlackElo "2242"]
[TimeControl "180+1"]
[EndTime "15:13:29 PDT"]
[Termination "JaackCamel won by resignation"]

1. d4 {[%clk 0:03:00.9]} 1... d5 {[%clk 0:02:59.6]} 2. Nf3 {[%clk 0:03:00.8]}
2... e6 {[%clk 0:02:57.5]} 3. g3 {[%clk 0:03:00.5]} 3... c6 {[%clk 0:02:56.7]}
4. Bg2 {[%clk 0:03:00.5]} 4... Nf6 {[%clk 0:02:56.4]} 5. O-O {[%clk 0:03:00.9]}
5... Nbd7 {[%clk 0:02:56]} 6. c4 {[%clk 0:03:01.2]} 6... dxc4 {[%clk 0:02:55.7]}
7. a4 {[%clk 0:02:43.1]} 7... b5 {[%clk 0:02:48.7]} 8. b3 {[%clk 0:02:36.8]}
8... cxb3 {[%clk 0:02:46.1]} 9. Qxb3 {[%clk 0:02:20.2]} 9... b4 {[%clk
0:02:45.6]} 10. a5 {[%clk 0:02:16.8]} 10... Rb8 {[%clk 0:02:31.6]} 11. Bf4
{[%clk 0:02:14]} 11... Rb5 {[%clk 0:02:24.4]} 12. Nbd2 {[%clk 0:01:53]} 12...
Bb7 {[%clk 0:02:23]} 13. a6 {[%clk 0:01:49.1]} 13... Ba8 {[%clk 0:02:22.5]} 14.
Nc4 {[%clk 0:01:48.3]} 14... Nb6 {[%clk 0:02:09.5]} 15. Rfd1 {[%clk 0:01:42.5]}
15... Nbd5 {[%clk 0:02:01.4]} 16. Be5 {[%clk 0:01:27.6]} 16... Be7 {[%clk
0:01:58]} 17. e4 {[%clk 0:01:23.9]} 17... Nc3 {[%clk 0:01:51]} 18. Bxf6 {[%clk
0:01:13.4]} 18... Bxf6 {[%clk 0:01:48.8]} 19. e5 {[%clk 0:01:13.6]} 19... Be7
{[%clk 0:01:37.7]} 20. Rd2 {[%clk 0:01:11]} 20... O-O {[%clk 0:01:36.9]} 21. h4
{[%clk 0:01:10.3]} 21... h6 {[%clk 0:01:36.5]} 22. Rd3 {[%clk 0:00:49.2]} 22...
Qb8 {[%clk 0:01:26.2]} 23. Nfd2 {[%clk 0:00:49.2]} 23... Rd8 {[%clk 0:01:19.4]}
24. Ne4 {[%clk 0:00:48.9]} 24... Nxe4 {[%clk 0:01:15.9]} 25. Bxe4 {[%clk
0:00:49.8]} 25... c5 {[%clk 0:01:16.2]} 26. Bxa8 {[%clk 0:00:44.6]} 26... Qxa8
{[%clk 0:01:15.3]} 27. dxc5 {[%clk 0:00:45.5]} 27... Bxc5 {[%clk 0:01:11.2]} 28.
Nd6 {[%clk 0:00:42.6]} 28... Rbb8 {[%clk 0:01:06.4]} 29. Rad1 {[%clk 0:00:39.6]}
29... Qc6 {[%clk 0:01:02.5]} 30. Qc4 {[%clk 0:00:35.8]} 30... Rxd6 {[%clk
0:00:58.4]} 0-1

[Event "Late-Titled-Tuesday-Blitz-April-16-2024"]
[Site "Chess.com"]
[Date "2024.04.16"]
[Round "7"]
[White "manitodeplomo"]
[Black "noblerone"]
[Result "1-0"]
[WhiteElo "2638"]
[BlackElo "2488"]
[TimeControl "180+1"]
[EndTime "15:13:30 PDT"]
[Termination "manitodeplomo won on time"]

1. d4 {[%clk 0:03:00.9]} 1... d5 {[%clk 0:02:53.4]} 2. c4 {[%clk 0:03:00.7]}
2... c6 {[%clk 0:02:50.4]} 3. Nf3 {[%clk 0:03:01]} 3... Nf6 {[%clk 0:02:50.5]}
4. Nc3 {[%clk 0:03:00.6]} 4... dxc4 {[%clk 0:02:50.4]} 5. a4 {[%clk 0:02:56.7]}
5... Bf5 {[%clk 0:02:43.2]} 6. e3 {[%clk 0:02:53.5]} 6... e6 {[%clk 0:02:39.5]}
7. Bxc4 {[%clk 0:02:54]} 7... Bb4 {[%clk 0:02:39.3]} 8. O-O {[%clk 0:02:52.5]}
8... O-O {[%clk 0:02:39.7]} 9. Nh4 {[%clk 0:02:52.1]} 9... Bg6 {[%clk
0:02:34.4]} 10. Nxg6 {[%clk 0:02:37.9]} 10... hxg6 {[%clk 0:02:27]} 11. Qc2
{[%clk 0:02:35.5]} 11... Nbd7 {[%clk 0:02:18.4]} 12. Ba2 {[%clk 0:02:30.4]}
12... c5 {[%clk 0:02:13.1]} 13. Rd1 {[%clk 0:02:27.3]} 13... Qa5 {[%clk
0:02:06.7]} 14. d5 {[%clk 0:02:24.8]} 14... e5 {[%clk 0:01:49.8]} 15. d6 {[%clk
0:02:22.9]} 15... Kh7 {[%clk 0:01:35.8]} 16. Ne4 {[%clk 0:02:20.9]} 16... Nxe4
{[%clk 0:01:29.6]} 17. Qxe4 {[%clk 0:02:20.4]} 17... Qd8 {[%clk 0:00:56.6]} 18.
Qxb7 {[%clk 0:02:12.1]} 18... a5 {[%clk 0:00:54.7]} 19. Qf3 {[%clk 0:02:08]}
19... Rc8 {[%clk 0:00:48.7]} 20. Bxf7 {[%clk 0:01:53.8]} 20... Qh4 {[%clk
0:00:42.7]} 21. g3 {[%clk 0:01:31.2]} 21... Qh3 {[%clk 0:00:40.9]} 22. Qd5
{[%clk 0:01:29.4]} 22... Rxf7 {[%clk 0:00:08.3]} 23. Qxf7 {[%clk 0:01:26.3]}
23... Nf6 {[%clk 0:00:08.4]} 24. d7 {[%clk 0:01:17.2]} 24... Rd8 {[%clk
0:00:06]} 25. e4 {[%clk 0:01:13.3]} 25... Ng4 {[%clk 0:00:05.4]} 26. Qf3 {[%clk
0:01:10.5]} 26... Qxh2+ {[%clk 0:00:05.4]} 27. Kf1 {[%clk 0:01:10.3]} 27... Rf8
{[%clk 0:00:05]} 28. Qxf8 {[%clk 0:01:06.8]} 28... Qh1+ {[%clk 0:00:04.9]} 29.
Ke2 {[%clk 0:01:06.9]} 29... Qxe4+ {[%clk 0:00:05.8]} 30. Be3 {[%clk 0:01:07.1]}
30... Qc4+ {[%clk 0:00:05.2]} 31. Kf3 {[%clk 0:01:06.7]} 1-0

[Event "Late-Titled-Tuesday-Blitz-April-16-2024"]
[Site "Chess.com"]
[Date "2024.04.16"]
[Round "7"]
[White "Narek_Ghimoyan"]
[Black "BenchGM"]
[Result "1-0"]
[WhiteElo "2484"]
[BlackElo "2307"]
[TimeControl "180+1"]
[EndTime "15:13:30 PDT"]
[Termination "Narek_Ghimoyan won on time"]

1. d4 {[%clk 0:03:00.9]} 1... Nf6 {[%clk 0:02:59.8]} 2. c4 {[%clk 0:03:01.8]}
2... e6 {[%clk 0:02:59.2]} 3. Nf3 {[%clk 0:03:02.2]} 3... d5 {[%clk 0:02:59.1]}
4. Nc3 {[%clk 0:03:02.7]} 4... dxc4 {[%clk 0:02:59.3]} 5. e3 {[%clk 0:03:01.9]}
5... a6 {[%clk 0:02:59]} 6. a4 {[%clk 0:03:01.1]} 6... c5 {[%clk 0:02:57.6]} 7.
Bxc4 {[%clk 0:03:00.7]} 7... cxd4 {[%clk 0:02:55.8]} 8. exd4 {[%clk 0:03:01]}
8... Nc6 {[%clk 0:02:36]} 9. O-O {[%clk 0:02:59.4]} 9... Be7 {[%clk 0:02:33.2]}
10. d5 {[%clk 0:02:53]} 10... exd5 {[%clk 0:02:26.8]} 11. Nxd5 {[%clk 0:02:53]}
11... Nxd5 {[%clk 0:02:23.9]} 12. Qxd5 {[%clk 0:02:53.9]} 12... Qxd5 {[%clk
0:02:21.9]} 13. Bxd5 {[%clk 0:02:54.8]} 13... O-O {[%clk 0:02:21.7]} 14. Bf4
{[%clk 0:02:54.2]} 14... Nb4 {[%clk 0:02:12.3]} 15. Be4 {[%clk 0:02:37.3]} 15...
f5 {[%clk 0:02:06.9]} 16. Bb1 {[%clk 0:02:34.1]} 16... b6 {[%clk 0:01:36.9]} 17.
Re1 {[%clk 0:02:23.6]} 17... Bc5 {[%clk 0:01:35.4]} 18. a5 {[%clk 0:02:17.6]}
18... Bb7 {[%clk 0:01:26.5]} 19. axb6 {[%clk 0:02:11]} 19... h6 {[%clk
0:01:02.9]} 20. Be3 {[%clk 0:02:06.3]} 20... Bxe3 {[%clk 0:00:51.1]} 21. Rxe3
{[%clk 0:02:07.2]} 21... Rad8 {[%clk 0:00:49]} 22. Ba2+ {[%clk 0:01:59.2]} 22...
Nxa2 {[%clk 0:00:46.8]} 23. Rxa2 {[%clk 0:02:00.1]} 23... Rd1+ {[%clk
0:00:45.6]} 24. Ne1 {[%clk 0:01:45.5]} 24... Rc8 {[%clk 0:00:39]} 25. b4 {[%clk
0:01:43.4]} 25... Rcc1 {[%clk 0:00:36.4]} 26. Rae2 {[%clk 0:01:42.7]} 26... f4
{[%clk 0:00:16.4]} 27. Re8+ {[%clk 0:01:39.1]} 27... Kh7 {[%clk 0:00:15.8]} 28.
R8e7 {[%clk 0:01:40]} 28... f3 {[%clk 0:00:14.8]} 29. gxf3 {[%clk 0:01:39.4]}
29... Bxf3 {[%clk 0:00:14.7]} 30. R2e3 {[%clk 0:01:40.3]} 30... Bh5 {[%clk
0:00:06.6]} 31. b7 {[%clk 0:01:37.7]} 31... Rd8 {[%clk 0:00:02.4]} 32. Rg3
{[%clk 0:01:28.9]} 32... Rc4 {[%clk 0:00:01.5]} 33. Rgxg7+ {[%clk 0:01:27.1]}
33... Kh8 {[%clk 0:00:01.3]} 34. Rh7+ {[%clk 0:01:25.7]} 34... Kg8 {[%clk
0:00:01.5]} 35. Reg7+ {[%clk 0:01:26.4]} 35... Kf8 {[%clk 0:00:01.4]} 36. Rh8+
{[%clk 0:01:27.3]} 36... Kxg7 {[%clk 0:00:01.4]} 37. Rxd8 {[%clk 0:01:28.2]} 1-0